Workbook

Sheet 2022年江门市本级一般公共预算收入调整表
A1: 附表1-1
A2: 2022年江门市本级一般公共预算收入调整表
D3: 金额单位：万元
A4: 收 入
A5: 项目 | B5: 2022年预算数 | C5: 调整金额 | D5: 调整后预算数 | E5: 1-10月执行数 | F5: 1-10月可比执行数 | G5: 1-12月自然数 | H5: 1-12月可比数 | I5: 2022年可比 | J5: 可比增速 | K5: 退税数预计 | L5: 2022年自然 | M5: 自然增速
A6: 一、税收收入 | B6: =SUM(B7:B19) -> 383,130 | C6: =SUM(C7:C19) -> -115,361 | D6: =SUM(D7:D19) -> 267,769 | E6: =SUM(E7:E19) -> 231,542 | F6: =SUM(F7:F19) -> 274,412 | G6: 358,097 | H6: 372,036 | I6: 325,532 | J6: =I6/H6-1 -> -12.5% | K6: =SUM(K7:K19) -> 57,763 | L6: =SUM(L7:L19) -> 267,769 | M6: =(L6/G6-1) -> -25.2%
A7: 增值税 | B7: 125,039 | C7: =D7-B7 -> -74,365 | D7: 50,674 | E7: 54,210 | F7: =E7+42870 -> 97,080 | G7: 112,648 | H7: =G7+13939 -> 126,587 | I7: 108,437 | J7: =I7/H7-1 -> -14.3% | K7: =42870+11893+20000*0.15 -> 57763 | L7: =I7-K7 -> 50,674 | M7: =(L7/G7-1) -> -55.0%
A8: 企业所得税 | B8: 41,294 | C8: =D8-B8 -> -9,010 | D8: 32,284 | E8: 31,916 | F8: =E8 -> 31,916 | G8: 37,540 | H8: =G8 -> 37,540 | I8: 32,284 | J8: -14.0% | L8: =I8 -> 32,284 | M8: -14.0%
A9: 个人所得税 | B9: 13,620 | C9: 64 | D9: 13,684 | E9: 12,146 | F9: =E9 -> 12,146 | G9: 12,670 | H9: =G9 -> 12,670 | I9: 13,684 | J9: 8.0% | L9: =I9 -> 13,684 | M9: 8.0%
A10: 资源税 | B10: 3,866 | C10: -1,879 | D10: 1,987 | E10: 1,839 | F10: 1,839 | G10: 3,613 | H10: 3,613 | I10: 1,987 | J10: -45.0% | L10: 1,987 | M10: -45.0%
A11: 城市维护建设税 | B11: 36,762 | C11: -7,215 | D11: 29,547 | E11: 26,378 | F11: 26,378 | G11: 34,357 | H11: 34,357 | I11: 29,547 | J11: -14.0% | L11: 29,547 | M11: -14.0%
A12: 房产税 | B12: 32,758 | C12: -3,061 | D12: 29,697 | E12: 20,560 | F12: 20,560 | G12: 30,615 | H12: 30,615 | I12: 29,697 | J12: -3.0% | L12: 29,697 | M12: -3.0%
A13: 印花税 | B13: 12,842 | C13: -0 | D13: 12,842 | E13: 10,930 | F13: 10,930 | G13: 12,002 | H13: 12,002 | I13: 12,842 | J13: 7.0% | L13: 12,842 | M13: 7.0%
A14: 城镇土地使用税 | B14: 15,120 | C14: -1,413 | D14: 13,707 | E14: 6,173 | F14: 6,173 | G14: 14,131 | H14: 14,131 | I14: 13,707 | J14: -3.0% | L14: 13,707 | M14: -3.0%
A15: 土地增值税 | B15: 34,181 | C15: -877 | D15: 33,304 | E15: 28,052 | F15: 28,052 | G15: 35,057 | H15: 35,057 | I15: 33,304 | J15: -5.0% | L15: 33,304 | M15: -5.0%
A16: 车船税 | B16: 8,097 | C16: 227 | D16: 8,324 | E16: 6,793 | F16: 6,793 | G16: 7,567 | H16: 7,567 | I16: 8,324 | J16: 10.0% | L16: 8,324 | M16: 10.0%
A17: 耕地占用税 | B17: 4,533 | C17: -551 | D17: 3,982 | E17: 3,653 | F17: 3,653 | G17: 4,236 | H17: 4,236 | I17: 3,982 | J17: -6.0% | L17: 3,982 | M17: -6.0%
A18: 契税 | B18: 54,646 | C18: -17,327 | D18: 37,319 | E18: 28,491 | F18: 28,491 | G18: 53,313 | H18: 53,313 | I18: 37,319 | J18: -30.0% | L18: 37,319 | M18: -30.0%
A19: 环保税 | B19: 372 | C19: 46 | D19: 418 | E19: 401 | F19: 401 | G19: 348 | H19: 348 | I19: 418 | J19: 20.1% | L19: 418 | M19: 20.1%
A20: 二、非税收入 | B20: =SUM(B21:B26) -> 209,183 | C20: =SUM(C21:C26) -> -2,942 | D20: =SUM(D21:D26) -> 206,241 | E20: =SUM(E21:E26) -> 193,986 | F20: =SUM(F21:F26) -> 193,986 | G20: 206,010 | H20: 206,010 | I20: 206,241 | J20: 0.1% | L20: 206,241 | M20: 0.1%
A21: 其中：专项收入 | B21: 43,514 | C21: =D21-B21 -> 48,270 | D21: 91,784 | E21: 74,031 | F21: =E21 -> 74,031 | G21: 97,319 | H21: 97,319 | I21: 91,784 | J21: -5.7% | L21: 91,784 | M21: -5.7%
A22: 行政事业性收费收入 | B22: 18,882 | C22: =D22-B22 -> 598 | D22: 19,480 | E22: 31,480 | F22: =E22 -> 31,480 | G22: 20,444 | H22: 20,444 | I22: 19,480 | J22: -4.7% | L22: 19,480 | M22: -4.7%
A23: 罚没收入 | B23: 19,683 | C23: 0 | D23: 19,683 | E23: 17,319 | F23: 17,319 | G23: 24,132 | H23: 24,132 | I23: 19,683 | J23: -18.4% | L23: 19,683 | M23: -18.4%
A24: 国有资本经营收入 | B24: 0 | C24: 203 | D24: 203 | E24: 203 | F24: 203 | G24: 2,404 | H24: 2,404 | I24: 203 | J24: -91.6% | L24: 203 | M24: -91.6%
A25: 国有资源(资产)有偿使用收入 | B25: 27,499 | C25: 47,430 | D25: 74,929 | E25: 70,791 | F25: 70,791 | G25: 58,054 | H25: 58,054 | I25: 74,929 | J25: 29.1% | L25: 74,929 | M25: 29.1%
A26: 其他收入 | B26: 99,604 | C26: -99,442 | D26: 162 | E26: 162 | F26: 162 | G26: 3,657 | H26: 3,657 | I26: 162 | J26: -95.6% | L26: 162 | M26: -95.6%
A29: 收入合计 | B29: =B6+B20 -> 592,312 | C29: =C6+C20 -> -118,302 | D29: =D6+D20 -> 474,010 | E29: =E6+E20 -> 425,528 | F29: 468,398 | G29: 564,107 | H29: 578,046 | I29: =I6+I20 -> 531,773 | J29: -8.0% | L29: 474,010 | M29: -16.0%
B83: 支出合计

Sheet 2022年江门市本级一般公共预算支出调整表
B1: 附表1-2
A2: 2022年江门市本级一般公共预算支出调整表
E3: 金额单位：万元
A4: 代码 | B4: 项目 | C4: 年初预算数 | D4: 调整金额 | E4: 调整后预算数 | G4: 2021年执行数 | H4: 增减% | I4: 国库预计 支出数 | J4: 比国库预计 增减 | M4: =O4-M5 -> -1 | N4: 723,171 | O4: =N4-E5 -> -1
B5: 合计 | C5: =SUM(C6:C29) -> 856,328 | D5: =E5-C5 -> -133,156 | E5: =SUM(E6:E29) -> 723,172 | G5: =SUM(G6:G28) -> 780,021 | H5: =(K5/G5-1)*100 -> -7.3 | I5: =SUM(I6:I28) -> 719,521 | J5: =E5-I5 -> 3,651 | K5: =SUM(K6:K28) -> 723,172 | L5: =I5/K5 -> 99.5% | S5: 合计 | T5: 723,171.00
A6: 201 | B6: 一般公共服务支出 | C6: 116,782 | D6: =E6-C6 -> -23,567 | E6: 93,215 | G6: 104,771 | H6: -10.8 | I6: 91,300 | J6: 1,915 | K6: =I6+M6 -> 93,451 | L6: =I6/K6 -> 97.7% | M6: 2151 | S6: 一般公共服务支出 | T6: 93,215.00 | W6: 一、一般公共服务 | X6: 116,782
A7: 202 | B7: 外交支出 | D7: 0 | G7: 0 | I7: 0 | J7: 0 | K7: 0 | S7: 外交支出 | W7: 二、外交支出 | X7: -
A8: 203 | B8: 国防支出 | C8: 2,183 | D8: -10 | E8: 2,173 | G8: 2,316 | H8: -8.2 | I8: 2,126 | J8: 47 | K8: 2,126 | L8: 100.0% | S8: 国防支出 | T8: 2,185.00 | W8: 三、国防支出 | X8: 2,183
A9: 204 | B9: 公共安全支出 | C9: 92,073 | D9: -14,751 | E9: 77,322 | G9: 87,316 | H9: -11.8 | I9: 77,022 | J9: 300 | K9: 77,022 | L9: 100.0% | S9: 公共安全支出 | T9: 77,522.00 | W9: 四、公共安全支出 | X9: 92,073
A10: 205 | B10: 教育支出 | C10: 142,864 | D10: 2,883 | E10: 145,747 | G10: 134,789 | H10: 6.7 | I10: 143,811 | J10: 1,936 | K10: 143,811 | L10: 100.0% | S10: 教育支出 | T10: 145,747.00 | W10: 五、教育支出 | X10: 142,864
A11: 206 | B11: 科学技术支出 | C11: 43,449 | D11: -9,268 | E11: 34,181 | G11: 38,770 | H11: -10.8 | I11: 34,581 | J11: -400 | K11: 34,581 | L11: 100.0% | S11: 科学技术支出 | T11: 34,181.00 | W11: 六、科学技术支出 | X11: 43,449
A12: 207 | B12: 文化旅游体育与传媒支出 | C12: 27,675 | D12: -9,695 | E12: 17,980 | G12: 27,575 | H12: -34.8 | I12: 17,980 | J12: 0 | K12: 17,980 | L12: 100.0% | S12: 文化旅游体育与传媒支出 | T12: 17,980.00 | W12: 七、文化旅游体育与传媒支出 | X12: 27,675
A13: 208 | B13: 社会保障和就业支出 | C13: 73,074 | D13: -4,620 | E13: 68,454 | G13: 66,274 | H13: 4.2 | I13: 68,454 | J13: 0 | K13: 69,054 | L13: 99.1% | M13: 600 | S13: 社会保障和就业支出 | T13: 68,454.00 | W13: 八、社会保障和就业支出 | X13: 73,074
A14: 210 | B14: 卫生健康支出 | C14: 88,648 | D14: -31,786 | E14: 56,862 | G14: 85,683 | H14: -33.3 | I14: 56,862 | J14: 0 | K14: 57,162 | L14: 99.5% | M14: 300 | S14: 卫生健康支出 | T14: 56,862.00 | W14: 九、卫生健康支出 | X14: 88,648
A15: 211 | B15: 节能环保支出 | C15: 12,660 | D15: -2,859 | E15: 9,801 | G15: 12,251 | H15: -20.0 | I15: 9,801 | J15: 0 | K15: 9,801 | L15: 100.0% | S15: 节能环保支出 | T15: 9,801.00 | W15: 十、节能环保支出 | X15: 12,660
A16: 212 | B16: 城乡社区支出 | C16: 29,591 | D16: -8,672 | E16: 20,919 | G16: 31,430 | H16: -31.9 | I16: 20,919 | J16: 0 | K16: 21,419 | L16: 97.7% | M16: 500 | S16: 城乡社区支出 | T16: 20,919.00 | W16: 十一、城乡社区支出 | X16: 29,591
A17: 213 | B17: 农林水支出 | C17: 31,330 | D17: -3,777 | E17: 27,553 | G17: 27,753 | H17: -0.7 | I17: 27,553 | J17: 0 | K17: 27,553 | L17: 100.0% | S17: 农林水支出 | T17: 27,553.00 | W17: 十二、农林水支出 | X17: 31,330
A18: 214 | B18: 交通运输支出 | C18: 71,778 | D18: -11,634 | E18: 60,144 | G18: 59,726 | H18: 1.0 | I18: 60,244 | J18: -100 | K18: 60,344 | L18: 99.8% | M18: 100 | S18: 交通运输支出 | T18: 60,144.00 | W18: 十三、交通运输支出 | X18: 71,778
A19: 215 | B19: 资源勘探工业信息等支出 | C19: 13,865 | D19: 17,508 | E19: 31,373 | G19: 18,179 | H19: 72.6 | I19: 31,373 | J19: 0 | K19: 31,373 | L19: 100.0% | S19: 资源勘探工业信息等支出 | T19: 31,373.00 | W19: 十四、资源勘探工业信息等支出 | X19: 13,865
A20: 216 | B20: 商业服务业等支出 | C20: 2,313 | D20: -489 | E20: 1,824 | G20: 1,491 | H20: 22.3 | I20: 1,824 | J20: 0 | K20: 1,824 | L20: 100.0% | S20: 商业服务业等支出 | T20: 1,824.00 | W20: 十五、商业服务业等支出 | X20: 2,313
A21: 217 | B21: 金融支出 | C21: 1,159 | D21: 0 | E21: 1,159 | G21: 5,231 | H21: -80.7 | I21: 1,007 | J21: 152 | K21: 1,007 | L21: 100.0% | S21: 金融支出 | T21: 948 | W21: 十六、金融支出 | X21: 1,159
A22: 219 | B22: 援助其他地区支出 | D22: 0 | I22: 0 | J22: 0 | K22: 0 | S22: 援助其他地区支出 | W22: 十七、援助其他地区支出 | X22: -
A23: 220 | B23: 自然资源海洋气象等支出 | C23: 10,773 | D23: -2,128 | E23: 8,645 | G23: 10,895 | H23: -24.3 | I23: 8,245 | J23: 400 | K23: 8,245 | L23: 100.0% | S23: 自然资源海洋气象等支出 | T23: 8,645.00 | W23: 十八、自然资源海洋气象等支出 | X23: 10,773
A24: 221 | B24: 住房保障支出 | C24: 30,567 | D24: -5,702 | E24: 24,865 | G24: 24,390 | H24: 1.9 | I24: 24,865 | J24: 0 | K24: 24,865 | L24: 100.0% | S24: 住房保障支出 | T24: 24,865.00 | W24: 十九、住房保障支出 | X24: 30,567
A25: 222 | B25: 粮油物资储备支出 | C25: 5,682 | D25: -518 | E25: 5,164 | G25: 7,728 | H25: -33.2 | I25: 5,164 | J25: 0 | K25: 5,164 | L25: 100.0% | S25: 粮油物资储备支出 | T25: 5,164.00 | W25: 二十、粮油物资储备支出 | X25: 5,682
A26: 224 | B26: 灾害防治及应急管理支出 | C26: 16,278 | D26: -5,854 | E26: 10,424 | G26: 10,291 | H26: 4.2 | I26: 10,724 | J26: -300 | K26: 10,724 | L26: 100.0% | S26: 灾害防治及应急管理支出 | T26: 10,424.00 | W26: 二十一、灾害防治及应急管理支出 | X26: 16,278
A27: 229 | B27: 其他支出（含预备费） | C27: 18,643 | D27: -18,261 | E27: 382 | G27: 20 | H27: 3,315.0 | I27: 683 | J27: -301 | K27: 683 | L27: 100.0% | S27: 其他支出（含预备费） | T27: 382 | W27: 二十二、预备费 | X27: 9,500
A28: 232 | B28: 债务付息支出 | C28: 24,640 | D28: 299 | E28: 24,939 | G28: 23,142 | H28: 8.0 | I28: =24939+44 -> 24,983 | J28: -44 | K28: 24,983 | L28: 100.0% | S28: 债务付息支出 | T28: 24,939.00 | W28: 二十三、其他支出 | X28: 9,143
B29: 债务发行费用支出 | C29: 301 | D29: -255 | E29: 46 | S29: 债务发行费用支出 | T29: 44 | W29: 二十四、债务付息支出 | X29: 24,640
W30: 二十五、债务发行费用支出 | X30: 301
